[Event "Early-Titled-Tuesday-Blitz-March-19-2024"]
[Site "Chess.com"]
[Date "2024.03.19"]
[Round "6"]
[White "Pumpkin_in_moonlight"]
[Black "dianamirza"]
[Result "1-0"]
[WhiteElo "2230"]
[BlackElo "1989"]
[TimeControl "180+1"]
[EndTime "9:08:16 PDT"]
[Termination "Pumpkin_in_moonlight won on time"]

1. e4 {[%clk 0:03:00.9]} 1... c5 {[%clk 0:02:42.9]} 2. Nf3 {[%clk 0:02:51]} 2...
Nc6 {[%clk 0:02:41.8]} 3. g3 {[%clk 0:02:42.2]} 3... e6 {[%clk 0:02:42]} 4. Bg2
{[%clk 0:02:42]} 4... d5 {[%clk 0:02:42.2]} 5. exd5 {[%clk 0:02:38.5]} 5... exd5
{[%clk 0:02:43.1]} 6. O-O {[%clk 0:02:37.1]} 6... Nf6 {[%clk 0:02:43.7]} 7. d4
{[%clk 0:02:35.9]} 7... cxd4 {[%clk 0:02:40.5]} 8. Nxd4 {[%clk 0:02:35.1]} 8...
Be7 {[%clk 0:02:40.3]} 9. Nc3 {[%clk 0:02:31.3]} 9... O-O {[%clk 0:02:38.1]} 10.
h3 {[%clk 0:02:12.9]} 10... Bc5 {[%clk 0:02:32.5]} 11. Nce2 {[%clk 0:02:06.3]}
11... Qb6 {[%clk 0:02:23]} 12. Nb3 {[%clk 0:01:59.7]} 12... Bd6 {[%clk
0:02:03.4]} 13. Be3 {[%clk 0:01:58.9]} 13... Qc7 {[%clk 0:01:49.4]} 14. Ned4
{[%clk 0:01:57.1]} 14... a6 {[%clk 0:01:44.7]} 15. Nxc6 {[%clk 0:01:44.1]} 15...
bxc6 {[%clk 0:01:43.3]} 16. Nc5 {[%clk 0:01:36.2]} 16... Be6 {[%clk 0:01:04.9]}
17. Bd4 {[%clk 0:01:28.5]} 17... Be7 {[%clk 0:01:00.6]} 18. Re1 {[%clk
0:01:24.6]} 18... Bxc5 {[%clk 0:00:50.3]} 19. Bxc5 {[%clk 0:01:23.5]} 19... Rfe8
{[%clk 0:00:50.5]} 20. Qd4 {[%clk 0:01:11.2]} 20... Rab8 {[%clk 0:00:39.1]} 21.
b3 {[%clk 0:01:10.4]} 21... Bf5 {[%clk 0:00:34.6]} 22. c4 {[%clk 0:00:50.6]}
22... dxc4 {[%clk 0:00:27.2]} 23. Qxc4 {[%clk 0:00:47.8]} 23... Qd7 {[%clk
0:00:20.6]} 24. Rad1 {[%clk 0:00:45.5]} 24... Qc8 {[%clk 0:00:18.7]} 25. Bd4
{[%clk 0:00:41]} 25... Nd5 {[%clk 0:00:15.8]} 26. Bxd5 {[%clk 0:00:35.7]} 26...
cxd5 {[%clk 0:00:16.3]} 27. Qxd5 {[%clk 0:00:34]} 27... Bxh3 {[%clk 0:00:14.1]}
28. Qg5 {[%clk 0:00:27.5]} 28... Qg4 {[%clk 0:00:10.5]} 29. Qxg4 {[%clk
0:00:13.7]} 29... Bxg4 {[%clk 0:00:11.4]} 30. Rxe8+ {[%clk 0:00:12.4]} 30...
Rxe8 {[%clk 0:00:11.8]} 31. Rc1 {[%clk 0:00:11.4]} 31... Rd8 {[%clk 0:00:10.9]}
32. Be3 {[%clk 0:00:10.9]} 32... h6 {[%clk 0:00:10.4]} 33. a4 {[%clk 0:00:09]}
33... Rd3 {[%clk 0:00:10.1]} 34. b4 {[%clk 0:00:08.7]} 34... Ra3 {[%clk
0:00:09.5]} 35. a5 {[%clk 0:00:07.7]} 35... Rb3 {[%clk 0:00:08.5]} 36. Bc5
{[%clk 0:00:07.7]} 36... Rd3 {[%clk 0:00:08.2]} 37. Re1 {[%clk 0:00:05.7]} 37...
Rd1 {[%clk 0:00:08.2]} 38. Rxd1 {[%clk 0:00:05.1]} 38... Bxd1 {[%clk 0:00:09.1]}
39. b5 {[%clk 0:00:04.6]} 39... axb5 {[%clk 0:00:08.8]} 40. a6 {[%clk 0:00:05]}
40... Bf3 {[%clk 0:00:09.5]} 41. a7 {[%clk 0:00:05]} 41... Ba8 {[%clk
0:00:09.6]} 42. Kf1 {[%clk 0:00:05.1]} 42... f6 {[%clk 0:00:09.4]} 43. Ke2
{[%clk 0:00:05.5]} 43... Kf7 {[%clk 0:00:10]} 44. Kd3 {[%clk 0:00:05.8]} 44...
Ke6 {[%clk 0:00:10.3]} 45. Kc3 {[%clk 0:00:05.7]} 45... Kd5 {[%clk 0:00:10.7]}
46. Bf8 {[%clk 0:00:05.8]} 46... Kc6 {[%clk 0:00:08.2]} 47. Bxg7 {[%clk
0:00:05.5]} 47... f5 {[%clk 0:00:08.3]} 48. Bxh6 {[%clk 0:00:05.2]} 48... Kb7
{[%clk 0:00:09]} 49. Be3 {[%clk 0:00:05]} 49... Kc6 {[%clk 0:00:08.9]} 50. Kb4
{[%clk 0:00:03.7]} 50... Bb7 {[%clk 0:00:06.2]} 51. Ka5 {[%clk 0:00:04]} 51...
Ba8 {[%clk 0:00:06.2]} 52. Kb4 {[%clk 0:00:03.8]} 52... Bb7 {[%clk 0:00:06.7]}
53. Kc3 {[%clk 0:00:03.8]} 53... Ba8 {[%clk 0:00:06.1]} 54. f3 {[%clk
0:00:03.1]} 54... Bb7 {[%clk 0:00:05.8]} 55. g4 {[%clk 0:00:03.2]} 55... fxg4
{[%clk 0:00:05.8]} 56. fxg4 {[%clk 0:00:03.7]} 56... Ba8 {[%clk 0:00:05.9]} 57.
Kb4 {[%clk 0:00:03.9]} 57... Bb7 {[%clk 0:00:05.5]} 58. Ka5 {[%clk 0:00:04.2]}
58... Ba8 {[%clk 0:00:04.8]} 59. g5 {[%clk 0:00:04.7]} 59... Kd6 {[%clk
0:00:01.8]} 60. Kxb5 {[%clk 0:00:03.9]} 60... Ke5 {[%clk 0:00:01.7]} 61. Kb6
{[%clk 0:00:03.8]} 61... Kf5 {[%clk 0:00:01.6]} 62. Kc7 {[%clk 0:00:03.6]} 62...
Kg6 {[%clk 0:00:01.3]} 63. Kb8 {[%clk 0:00:03.5]} 1-0

[Event "Early-Titled-Tuesday-Blitz-March-19-2024"]
[Site "Chess.com"]
[Date "2024.03.19"]
[Round "6"]
[White "koncheto"]
[Black "LeoWin2012"]
[Result "0-1"]
[WhiteElo "2490"]
[BlackElo "2232"]
[TimeControl "180+1"]
[EndTime "9:08:19 PDT"]
[Termination "LeoWin2012 won by checkmate"]

1. e4 {[%clk 0:03:00.9]} 1... e5 {[%clk 0:02:59.4]} 2. Nf3 {[%clk 0:02:59.6]}
2... Nf6 {[%clk 0:02:58.6]} 3. Nxe5 {[%clk 0:02:56]} 3... d6 {[%clk 0:02:57.4]}
4. Nf3 {[%clk 0:02:56.1]} 4... Nxe4 {[%clk 0:02:56.7]} 5. d4 {[%clk 0:02:56.4]}
5... d5 {[%clk 0:02:49.5]} 6. Bd3 {[%clk 0:02:56.2]} 6... Bf5 {[%clk 0:02:48.6]}
7. O-O {[%clk 0:02:53.9]} 7... Bd6 {[%clk 0:02:45.1]} 8. c4 {[%clk 0:02:52.4]}
8... c6 {[%clk 0:02:29.5]} 9. Nc3 {[%clk 0:02:50]} 9... O-O {[%clk 0:02:27.5]}
10. cxd5 {[%clk 0:02:40.9]} 10... Nxc3 {[%clk 0:02:12.8]} 11. bxc3 {[%clk
0:02:40.3]} 11... Bxd3 {[%clk 0:02:12.9]} 12. dxc6 {[%clk 0:01:59.3]} 12... Be4
{[%clk 0:01:52.1]} 13. cxb7 {[%clk 0:01:27.2]} 13... Bxb7 {[%clk 0:01:53]} 14.
Rb1 {[%clk 0:01:27.6]} 14... Ba6 {[%clk 0:01:44.1]} 15. Re1 {[%clk 0:01:24.4]}
15... Nd7 {[%clk 0:01:44.1]} 16. Qa4 {[%clk 0:01:18.1]} 16... Bd3 {[%clk
0:01:37.2]} 17. Rb7 {[%clk 0:01:16.1]} 17... Nb6 {[%clk 0:01:34.7]} 18. Qc6
{[%clk 0:01:07]} 18... Rc8 {[%clk 0:01:21]} 19. Rxb6 {[%clk 0:00:48.3]} 19...
Qxb6 {[%clk 0:01:06.1]} 20. Qd5 {[%clk 0:00:35.1]} 20... Qd8 {[%clk 0:00:48.8]}
21. Qh5 {[%clk 0:00:34.5]} 21... Bg6 {[%clk 0:00:46]} 22. Qg4 {[%clk 0:00:30.2]}
22... Rxc3 {[%clk 0:00:41.4]} 23. h4 {[%clk 0:00:26.9]} 23... Qc7 {[%clk
0:00:37.5]} 24. Bd2 {[%clk 0:00:20.7]} 24... h5 {[%clk 0:00:28.4]} 25. Qg5
{[%clk 0:00:15.8]} 25... Rc2 {[%clk 0:00:26.2]} 26. Ne5 {[%clk 0:00:15.3]} 26...
Bxe5 {[%clk 0:00:25]} 27. dxe5 {[%clk 0:00:15.7]} 27... Qd7 {[%clk 0:00:16.7]}
28. Bb4 {[%clk 0:00:12.1]} 28... Re8 {[%clk 0:00:16]} 29. Qe3 {[%clk 0:00:07.2]}
29... Rxa2 {[%clk 0:00:13.7]} 30. Bc3 {[%clk 0:00:07.3]} 30... Ra6 {[%clk
0:00:13.3]} 31. Qe2 {[%clk 0:00:06.4]} 31... Rae6 {[%clk 0:00:13.1]} 32. Rd1
{[%clk 0:00:06.5]} 32... Qc6 {[%clk 0:00:12.3]} 33. Qe3 {[%clk 0:00:05.9]} 33...
Rc8 {[%clk 0:00:11.4]} 34. Ba1 {[%clk 0:00:05.8]} 34... a5 {[%clk 0:00:11.2]}
35. Qa7 {[%clk 0:00:05.9]} 35... a4 {[%clk 0:00:10.5]} 36. Qe3 {[%clk
0:00:05.7]} 36... Qa6 {[%clk 0:00:10]} 37. Qd2 {[%clk 0:00:03]} 37... a3 {[%clk
0:00:09.6]} 38. Qe3 {[%clk 0:00:02.6]} 38... a2 {[%clk 0:00:09.7]} 39. Qh3
{[%clk 0:00:02.1]} 39... Rb8 {[%clk 0:00:09.8]} 40. Qe3 {[%clk 0:00:01.1]} 40...
Rb1 {[%clk 0:00:09.9]} 41. Qd4 {[%clk 0:00:01.2]} 41... Rxd1+ {[%clk 0:00:09.4]}
42. Qxd1 {[%clk 0:00:02.1]} 42... Qb5 {[%clk 0:00:08.6]} 43. Qd8+ {[%clk
0:00:02.4]} 43... Kh7 {[%clk 0:00:08.6]} 44. Qd4 {[%clk 0:00:02.9]} 44... Qb1+
{[%clk 0:00:08.6]} 45. Kh2 {[%clk 0:00:03]} 45... Qc2 {[%clk 0:00:06.8]} 46. f4
{[%clk 0:00:03.2]} 46... Qe4 {[%clk 0:00:06.8]} 47. Qf2 {[%clk 0:00:03.1]} 47...
Rc6 {[%clk 0:00:06]} 48. Qa7 {[%clk 0:00:01.8]} 48... Rc2 {[%clk 0:00:04.9]} 49.
Qg1 {[%clk 0:00:02.4]} 49... Qc4 {[%clk 0:00:03.4]} 50. e6 {[%clk 0:00:03]}
50... fxe6 {[%clk 0:00:03]} 51. Qd1 {[%clk 0:00:03.3]} 51... Rc1 {[%clk
0:00:03.4]} 52. Qf3 {[%clk 0:00:01.3]} 52... Rxa1 {[%clk 0:00:03.6]} 53. f5
{[%clk 0:00:01.4]} 53... Bxf5 {[%clk 0:00:03.4]} 54. Qg3 {[%clk 0:00:02.3]}
54... Bg6 {[%clk 0:00:03.3]} 55. Qg5 {[%clk 0:00:03.2]} 55... Qg4 {[%clk
0:00:03.4]} 56. Qe7 {[%clk 0:00:04.1]} 56... Qf4+ {[%clk 0:00:03.4]} 57. Kh3
{[%clk 0:00:04]} 57... Qf2 {[%clk 0:00:04.1]} 58. Qg5 {[%clk 0:00:03]} 58...
Qf5+ {[%clk 0:00:04.6]} 59. g4 {[%clk 0:00:03]} 59... Qxg4+ {[%clk 0:00:04.7]}
60. Qxg4 {[%clk 0:00:03.2]} 60... hxg4+ {[%clk 0:00:05.6]} 61. Kg3 {[%clk
0:00:03.7]} 61... Rb1 {[%clk 0:00:06.1]} 62. Kxg4 {[%clk 0:00:04]} 62... a1=Q
{[%clk 0:00:07]} 63. h5 {[%clk 0:00:04.8]} 63... Qd4+ {[%clk 0:00:07.4]} 64. Kh3
{[%clk 0:00:05.2]} 64... Rb3+ {[%clk 0:00:08]} 65. Kh2 {[%clk 0:00:06.1]} 65...
Qb2+ {[%clk 0:00:08.7]} 66. Kg1 {[%clk 0:00:06.5]} 66... Rg3+ {[%clk 0:00:09]}
67. Kh1 {[%clk 0:00:06.8]} 67... Qg2# {[%clk 0:00:08.9]} 0-1

[Event "Early-Titled-Tuesday-Blitz-March-19-2024"]
[Site "Chess.com"]
[Date "2024.03.19"]
[Round "6"]
[White "yosephtaher"]
[Black "ChessQueen"]
[Result "1/2-1/2"]
[WhiteElo "2954"]
[BlackElo "2759"]
[TimeControl "180+1"]
[EndTime "9:08:21 PDT"]
[Termination "Game drawn by repetition"]

1. d4 {[%clk 0:03:00.9]} 1... f5 {[%clk 0:02:58.8]} 2. Nc3 {[%clk 0:03:01]} 2...
Nf6 {[%clk 0:02:58.3]} 3. Bg5 {[%clk 0:03:01.4]} 3... d5 {[%clk 0:02:58.3]} 4.
Bxf6 {[%clk 0:03:01.8]} 4... exf6 {[%clk 0:02:57.8]} 5. e3 {[%clk 0:03:02.5]}
5... c6 {[%clk 0:02:53.8]} 6. Qf3 {[%clk 0:03:02.6]} 6... Be6 {[%clk 0:02:51.3]}
7. Bd3 {[%clk 0:03:01.1]} 7... Qd7 {[%clk 0:02:48]} 8. Nge2 {[%clk 0:03:01.6]}
8... Bd6 {[%clk 0:02:43.5]} 9. Nf4 {[%clk 0:02:58.4]} 9... Bxf4 {[%clk
0:02:29.3]} 10. Qxf4 {[%clk 0:02:59.3]} 10... O-O {[%clk 0:02:19.2]} 11. h3
{[%clk 0:02:57.7]} 11... c5 {[%clk 0:02:12.4]} 12. dxc5 {[%clk 0:02:53.9]} 12...
Nc6 {[%clk 0:02:12.2]} 13. g4 {[%clk 0:02:48.4]} 13... d4 {[%clk 0:02:10]} 14.
gxf5 {[%clk 0:02:45.7]} 14... Bf7 {[%clk 0:01:40.7]} 15. exd4 {[%clk 0:02:42.3]}
15... Bh5 {[%clk 0:01:31.3]} 16. d5 {[%clk 0:02:35.3]} 16... Ne5 {[%clk
0:01:29.9]} 17. Be4 {[%clk 0:02:31.4]} 17... Rfe8 {[%clk 0:01:24]} 18. O-O
{[%clk 0:02:31.3]} 18... Qc7 {[%clk 0:01:17]} 19. Qg3 {[%clk 0:01:58.2]} 19...
Qxc5 {[%clk 0:01:16.1]} 20. Bg2 {[%clk 0:01:58.9]} 20... Rad8 {[%clk 0:01:00.8]}
21. Rfe1 {[%clk 0:01:54]} 21... Kh8 {[%clk 0:00:58.2]} 22. Re4 {[%clk
0:01:51.8]} 22... Qb6 {[%clk 0:00:54]} 23. Rae1 {[%clk 0:01:49.3]} 23... Qxb2
{[%clk 0:00:50]} 24. f4 {[%clk 0:01:49.6]} 24... Nd7 {[%clk 0:00:41.5]} 25.
Rxe8+ {[%clk 0:01:45]} 25... Rxe8 {[%clk 0:00:41.9]} 26. Rxe8+ {[%clk
0:01:45.6]} 26... Bxe8 {[%clk 0:00:42.2]} 27. Qe3 {[%clk 0:01:46.3]} 27... Bf7
{[%clk 0:00:42.5]} 28. Qe7 {[%clk 0:01:35.2]} 28... Bg8 {[%clk 0:00:42.8]} 29.
Qxd7 {[%clk 0:01:20.4]} 29... Qxc3 {[%clk 0:00:43.1]} 30. d6 {[%clk 0:01:14.9]}
30... Qd4+ {[%clk 0:00:43.2]} 31. Kh1 {[%clk 0:01:15]} 31... Qxf4 {[%clk
0:00:37.4]} 32. Qe7 {[%clk 0:01:07.4]} 32... Qc1+ {[%clk 0:00:37.5]} 33. Kh2
{[%clk 0:01:08.1]} 33... Qf4+ {[%clk 0:00:37.9]} 34. Kg1 {[%clk 0:01:08.8]}
34... Qd4+ {[%clk 0:00:38.2]} 35. Kh1 {[%clk 0:01:05.9]} 35... Qd1+ {[%clk
0:00:26]} 36. Kh2 {[%clk 0:01:03.4]} 36... Qxc2 {[%clk 0:00:24.9]} 37. d7 {[%clk
0:00:59.2]} 37... Qc7+ {[%clk 0:00:24.9]} 38. Kg1 {[%clk 0:00:59.9]} 38... Qc1+
{[%clk 0:00:22.3]} 39. Bf1 {[%clk 0:00:59.4]} 39... Qg5+ {[%clk 0:00:22.3]} 40.
Kf2 {[%clk 0:00:28.6]} 40... Qxf5+ {[%clk 0:00:22.5]} 41. Ke3 {[%clk 0:00:27.6]}
41... Qg5+ {[%clk 0:00:15.7]} 42. Kd3 {[%clk 0:00:21.9]} 42... Qd5+ {[%clk
0:00:15]} 43. Kc3 {[%clk 0:00:20.5]} 43... Qa5+ {[%clk 0:00:14.9]} 44. Kd4
{[%clk 0:00:15.2]} 44... Qd5+ {[%clk 0:00:08.3]} 45. Ke3 {[%clk 0:00:13.6]}
45... Qg5+ {[%clk 0:00:08.4]} 46. Ke4 {[%clk 0:00:09.4]} 46... Qd5+ {[%clk
0:00:07.7]} 47. Kf4 {[%clk 0:00:07.2]} 47... Qg5+ {[%clk 0:00:07.7]} 48. Kf3
{[%clk 0:00:07.9]} 48... Qf5+ {[%clk 0:00:07.2]} 49. Ke2 {[%clk 0:00:08.6]}
49... Qc2+ {[%clk 0:00:06.3]} 50. Ke1 {[%clk 0:00:08.1]} 50... Qc1+ {[%clk
0:00:06.3]} 51. Kf2 {[%clk 0:00:08.7]} 51... Qf4+ {[%clk 0:00:06.6]} 52. Kg1
{[%clk 0:00:07.6]} 52... Qg5+ {[%clk 0:00:06.2]} 53. Kh2 {[%clk 0:00:05.3]}
53... Qf4+ {[%clk 0:00:06.5]} 54. Kg1 {[%clk 0:00:05.9]} 54... Qg5+ {[%clk
0:00:06.6]} 55. Kf2 {[%clk 0:00:06.5]} 55... Qf4+ {[%clk 0:00:06.5]} 56. Ke2
{[%clk 0:00:07]} 56... Bc4+ {[%clk 0:00:05.6]} 57. Kd1 {[%clk 0:00:07.6]} 57...
Qxf1+ {[%clk 0:00:05.7]} 58. Kc2 {[%clk 0:00:07.8]} 58... Qd3+ {[%clk 0:00:06]}
59. Kc1 {[%clk 0:00:08.5]} 59... Qc3+ {[%clk 0:00:06]} 60. Kd1 {[%clk
0:00:09.2]} 60... Qd3+ {[%clk 0:00:06.6]} 61. Ke1 {[%clk 0:00:09.8]} 61... Qf1+
{[%clk 0:00:06.9]} 62. Kd2 {[%clk 0:00:10.3]} 62... Qd3+ {[%clk 0:00:07.3]} 63.
Kc1 {[%clk 0:00:10.9]} 63... Qc3+ {[%clk 0:00:07.9]} 64. Kd1 {[%clk 0:00:11.6]}
64... Qd3+ {[%clk 0:00:08.4]} 65. Ke1 {[%clk 0:00:12.1]} 65... Qf1+ {[%clk
0:00:08.8]} 66. Kd2 {[%clk 0:00:12.6]} 66... Qd3+ {[%clk 0:00:09.2]} 67. Kc1
{[%clk 0:00:10]} 1/2-1/2

[Event "Early-Titled-Tuesday-Blitz-March-19-2024"]
[Site "Chess.com"]
[Date "2024.03.19"]
[Round "6"]
[White "Firouzja2003"]
[Black "kpio91"]
[Result "1-0"]
[WhiteElo "3097"]
[BlackElo "2857"]
[TimeControl "180+1"]
[EndTime "9:08:23 PDT"]
[Termination "Firouzja2003 won by resignation"]

1. Nf3 {[%clk 0:03:00.9]} 1... g6 {[%clk 0:03:00.9]} 2. e4 {[%clk 0:03:00.2]}
2... Bg7 {[%clk 0:03:01.8]} 3. d4 {[%clk 0:03:00.5]} 3... d6 {[%clk 0:03:01.5]}
4. Nc3 {[%clk 0:02:57.2]} 4... Nf6 {[%clk 0:02:58.2]} 5. Be2 {[%clk 0:02:57.4]}
5... O-O {[%clk 0:02:57.6]} 6. O-O {[%clk 0:02:57.8]} 6... a6 {[%clk 0:02:57.9]}
7. Re1 {[%clk 0:02:55.6]} 7... Nc6 {[%clk 0:02:53.7]} 8. d5 {[%clk 0:02:54.3]}
8... Nb8 {[%clk 0:02:50.7]} 9. h3 {[%clk 0:02:46.6]} 9... c6 {[%clk 0:02:49.2]}
10. a4 {[%clk 0:02:43.4]} 10... b6 {[%clk 0:02:44.7]} 11. Nd4 {[%clk 0:02:37.5]}
11... Bb7 {[%clk 0:02:41.7]} 12. Bf3 {[%clk 0:02:33.9]} 12... Qc7 {[%clk
0:02:35.9]} 13. Bf4 {[%clk 0:02:31.6]} 13... Nfd7 {[%clk 0:02:34]} 14. Qd2
{[%clk 0:02:20]} 14... Ne5 {[%clk 0:02:26.4]} 15. Be2 {[%clk 0:02:20.1]} 15...
c5 {[%clk 0:02:14.9]} 16. Nb3 {[%clk 0:02:16]} 16... e6 {[%clk 0:02:13.8]} 17.
Rad1 {[%clk 0:02:14.6]} 17... exd5 {[%clk 0:01:45.4]} 18. Nxd5 {[%clk
0:02:13.3]} 18... Bxd5 {[%clk 0:01:45.2]} 19. Qxd5 {[%clk 0:02:14.2]} 19... Nbc6
{[%clk 0:01:45.4]} 20. Qxd6 {[%clk 0:02:14]} 20... Qb7 {[%clk 0:01:45.6]} 21.
Qd2 {[%clk 0:01:45.8]} 21... c4 {[%clk 0:01:45]} 22. Nc1 {[%clk 0:01:40.6]}
22... b5 {[%clk 0:01:45.2]} 23. axb5 {[%clk 0:01:28.6]} 23... axb5 {[%clk
0:01:37.1]} 24. c3 {[%clk 0:01:28.9]} 24... Rfe8 {[%clk 0:01:31.7]} 25. Bf1
{[%clk 0:01:28.5]} 25... Ra1 {[%clk 0:01:05.3]} 26. Be3 {[%clk 0:01:25.7]} 26...
Bf6 {[%clk 0:00:41.7]} 27. f4 {[%clk 0:01:23.1]} 27... Rd8 {[%clk 0:00:41.9]}
28. Qf2 {[%clk 0:01:19.3]} 28... Rxd1 {[%clk 0:00:41.6]} 29. Rxd1 {[%clk
0:01:19.5]} 29... Nd7 {[%clk 0:00:39.6]} 30. Qd2 {[%clk 0:01:08.9]} 30... Nb6
{[%clk 0:00:34.3]} 31. Ne2 {[%clk 0:00:59.1]} 31... Rxd1 {[%clk 0:00:31.4]} 32.
Qxd1 {[%clk 0:01:00]} 32... Na4 {[%clk 0:00:32.1]} 33. Qd2 {[%clk 0:00:52.4]}
33... Be7 {[%clk 0:00:28.5]} 34. e5 {[%clk 0:00:42.3]} 34... Bc5 {[%clk
0:00:28]} 35. Bxc5 {[%clk 0:00:33.5]} 35... Nxc5 {[%clk 0:00:27.8]} 36. Ng3
{[%clk 0:00:31.3]} 36... Ne6 {[%clk 0:00:25.8]} 37. Ne4 {[%clk 0:00:28.8]} 37...
Ne7 {[%clk 0:00:18.4]} 38. Nf6+ {[%clk 0:00:19]} 38... Kg7 {[%clk 0:00:18.7]}
39. g3 {[%clk 0:00:18.1]} 39... Ng8 {[%clk 0:00:17.6]} 40. Ne8+ {[%clk
0:00:15.9]} 40... Kf8 {[%clk 0:00:17.4]} 41. Nd6 {[%clk 0:00:13.5]} 41... Qb6+
{[%clk 0:00:16.8]} 42. Qf2 {[%clk 0:00:13.3]} 42... Nc5 {[%clk 0:00:08.8]} 43.
Ne4 {[%clk 0:00:10.8]} 43... Na4 {[%clk 0:00:07]} 44. Qxb6 {[%clk 0:00:11.7]}
44... Nxb6 {[%clk 0:00:07.9]} 45. Nd6 {[%clk 0:00:12]} 45... Na4 {[%clk
0:00:08.2]} 46. Nxb5 {[%clk 0:00:11.6]} 46... Nxb2 {[%clk 0:00:08.5]} 47. Nd6
{[%clk 0:00:11.1]} 47... Ne7 {[%clk 0:00:04.9]} 48. Nxc4 {[%clk 0:00:04.7]}
48... Na4 {[%clk 0:00:04.1]} 49. Nd6 {[%clk 0:00:05.4]} 49... Nxc3 {[%clk
0:00:04.2]} 50. Bc4 {[%clk 0:00:06.2]} 50... Ncd5 {[%clk 0:00:03.1]} 51. Ne4
{[%clk 0:00:04]} 51... Kg7 {[%clk 0:00:02.5]} 52. Kf2 {[%clk 0:00:04.2]} 52...
f5 {[%clk 0:00:02.1]} 53. Ng5 {[%clk 0:00:04.2]} 53... h6 {[%clk 0:00:01.8]} 54.
Ne6+ {[%clk 0:00:04.8]} 54... Kh7 {[%clk 0:00:01.8]} 55. Kf3 {[%clk 0:00:05.3]}
55... Nb6 {[%clk 0:00:02.3]} 56. Bb3 {[%clk 0:00:05.6]} 56... Nd7 {[%clk
0:00:03]} 57. h4 {[%clk 0:00:05.6]} 57... h5 {[%clk 0:00:02.7]} 58. Ke3 {[%clk
0:00:05.5]} 58... Nb6 {[%clk 0:00:03]} 59. Kd4 {[%clk 0:00:05.7]} 59... Nbc8
{[%clk 0:00:03.1]} 60. Kc5 {[%clk 0:00:05.9]} 60... Kh6 {[%clk 0:00:02.4]} 61.
Kb5 {[%clk 0:00:04.9]} 61... Kh7 {[%clk 0:00:01.6]} 62. Ka6 {[%clk 0:00:05.3]}
62... Nc6 {[%clk 0:00:02.2]} 63. Kb7 {[%clk 0:00:04.8]} 63... Na5+ {[%clk
0:00:02.4]} 64. Kxc8 {[%clk 0:00:04.8]} 64... Nxb3 {[%clk 0:00:03.3]} 65. Kd7
{[%clk 0:00:04.2]} 65... Nd2 {[%clk 0:00:03.1]} 66. Ng5+ {[%clk 0:00:04.7]}
66... Kg7 {[%clk 0:00:03.1]} 67. e6 {[%clk 0:00:05.6]} 1-0

[Event "Early-Titled-Tuesday-Blitz-March-19-2024"]
[Site "Chess.com"]
[Date "2024.03.19"]
[Round "6"]
[White "manitodeplomo"]
[Black "Vse_po_kaify"]
[Result "1/2-1/2"]
[WhiteElo "2655"]
[BlackElo "2469"]
[TimeControl "180+1"]
[EndTime "9:08:44 PDT"]
[Termination "Game drawn by repetition"]

1. d4 {[%clk 0:02:58.4]} 1... Nf6 {[%clk 0:02:59.7]} 2. c4 {[%clk 0:02:57.1]}
2... e6 {[%clk 0:02:59.8]} 3. Nf3 {[%clk 0:02:56.4]} 3... Bb4+ {[%clk
0:02:59.1]} 4. Bd2 {[%clk 0:02:55.7]} 4... Qe7 {[%clk 0:02:58]} 5. Nc3 {[%clk
0:02:54.6]} 5... O-O {[%clk 0:02:51.4]} 6. g3 {[%clk 0:02:48.8]} 6... Nc6 {[%clk
0:02:48.4]} 7. Bg2 {[%clk 0:02:43.7]} 7... Bxc3 {[%clk 0:02:47.3]} 8. Bxc3
{[%clk 0:02:43.1]} 8... d6 {[%clk 0:02:48]} 9. d5 {[%clk 0:02:38.6]} 9... Nb8
{[%clk 0:02:44.4]} 10. O-O {[%clk 0:02:34.7]} 10... a5 {[%clk 0:02:42.5]} 11.
Nd2 {[%clk 0:02:26.3]} 11... e5 {[%clk 0:02:39.6]} 12. e4 {[%clk 0:02:25.5]}
12... Nbd7 {[%clk 0:02:39]} 13. b3 {[%clk 0:02:15.9]} 13... a4 {[%clk
0:02:04.4]} 14. b4 {[%clk 0:02:11]} 14... b5 {[%clk 0:02:03.3]} 15. cxb5 {[%clk
0:02:03.1]} 15... Nb6 {[%clk 0:02:01.9]} 16. Re1 {[%clk 0:02:01.4]} 16... Bd7
{[%clk 0:02:01.6]} 17. Bf1 {[%clk 0:02:00.9]} 17... Rfb8 {[%clk 0:02:01.5]} 18.
a3 {[%clk 0:01:49.9]} 18... Nc8 {[%clk 0:02:01]} 19. Rc1 {[%clk 0:01:42.1]}
19... Na7 {[%clk 0:01:53.7]} 20. Bb2 {[%clk 0:01:34.5]} 20... Nxb5 {[%clk
0:01:52.6]} 21. Nc4 {[%clk 0:01:32.4]} 21... Ng4 {[%clk 0:01:28.1]} 22. Na5
{[%clk 0:01:08.7]} 22... Nd4 {[%clk 0:01:14.9]} 23. Bxd4 {[%clk 0:00:23.6]}
23... exd4 {[%clk 0:01:14.2]} 24. Rxc7 {[%clk 0:00:23.9]} 24... Qd8 {[%clk
0:01:02.9]} 25. Rxd7 {[%clk 0:00:20.7]} 25... Qxd7 {[%clk 0:01:01.8]} 26. Bh3
{[%clk 0:00:20.9]} 26... f5 {[%clk 0:00:55.2]} 27. exf5 {[%clk 0:00:18.2]} 27...
Ne5 {[%clk 0:00:52.9]} 28. f4 {[%clk 0:00:15.8]} 28... Nf7 {[%clk 0:00:50.7]}
29. Qxd4 {[%clk 0:00:14.8]} 29... Re8 {[%clk 0:00:22.5]} 30. Re6 {[%clk
0:00:13.8]} 30... Nd8 {[%clk 0:00:22.8]} 31. Bg2 {[%clk 0:00:10.6]} 31... Nxe6
{[%clk 0:00:21.9]} 32. fxe6 {[%clk 0:00:10.7]} 32... Qa7 {[%clk 0:00:22]} 33.
Qxa7 {[%clk 0:00:10.6]} 33... Rxa7 {[%clk 0:00:22.5]} 34. Nc6 {[%clk 0:00:10.9]}
34... Rb7 {[%clk 0:00:22.2]} 35. f5 {[%clk 0:00:10.3]} 35... Rf8 {[%clk
0:00:20.8]} 36. g4 {[%clk 0:00:10.3]} 36... h6 {[%clk 0:00:20.5]} 37. Be4 {[%clk
0:00:09.7]} 37... g5 {[%clk 0:00:16.4]} 38. Kf2 {[%clk 0:00:08.9]} 38... Kg7
{[%clk 0:00:16.5]} 39. Ke3 {[%clk 0:00:08.8]} 39... Kf6 {[%clk 0:00:16.8]} 40.
Kd4 {[%clk 0:00:08.8]} 40... Rc8 {[%clk 0:00:16.7]} 41. h3 {[%clk 0:00:07.9]}
41... h5 {[%clk 0:00:16.5]} 42. Kc4 {[%clk 0:00:06.6]} 42... hxg4 {[%clk
0:00:16.1]} 43. hxg4 {[%clk 0:00:07.5]} 43... Rh8 {[%clk 0:00:15.9]} 44. e7
{[%clk 0:00:03]} 44... Kf7 {[%clk 0:00:12.7]} 45. f6 {[%clk 0:00:02.4]} 45...
Rc7 {[%clk 0:00:10.1]} 46. Bf5 {[%clk 0:00:01.9]} 46... Kxf6 {[%clk 0:00:09.9]}
47. b5 {[%clk 0:00:01.4]} 47... Rxe7 {[%clk 0:00:08.4]} 48. Nxe7 {[%clk
0:00:01]} 48... Kxe7 {[%clk 0:00:09.3]} 49. b6 {[%clk 0:00:01.7]} 49... Kd8
{[%clk 0:00:08.4]} 50. Kb5 {[%clk 0:00:01.8]} 50... Rh3 {[%clk 0:00:08.3]} 51.
Kxa4 {[%clk 0:00:02]} 51... Rh1 {[%clk 0:00:08]} 52. Kb5 {[%clk 0:00:02.2]}
52... Rh2 {[%clk 0:00:08.3]} 53. Kc6 {[%clk 0:00:02.7]} 53... Rb2 {[%clk
0:00:08]} 54. Kxd6 {[%clk 0:00:03.3]} 54... Rxb6+ {[%clk 0:00:08.2]} 55. Ke5
{[%clk 0:00:03.9]} 55... Ra6 {[%clk 0:00:08.7]} 56. Be6 {[%clk 0:00:03.8]} 56...
Ke7 {[%clk 0:00:08.1]} 57. Kf5 {[%clk 0:00:04.3]} 57... Rxa3 {[%clk 0:00:08.2]}
58. Kxg5 {[%clk 0:00:04.8]} 58... Ra1 {[%clk 0:00:08.2]} 59. Kf5 {[%clk
0:00:04.7]} 59... Rf1+ {[%clk 0:00:08.4]} 60. Kg6 {[%clk 0:00:05.1]} 60... Rf6+
{[%clk 0:00:06.5]} 61. Kh5 {[%clk 0:00:04.4]} 61... Rf1 {[%clk 0:00:06.2]} 62.
g5 {[%clk 0:00:04.9]} 62... Rh1+ {[%clk 0:00:06.2]} 63. Kg6 {[%clk 0:00:05.5]}
63... Rg1 {[%clk 0:00:06]} 64. Kh6 {[%clk 0:00:05.5]} 64... Rh1+ {[%clk
0:00:06.1]} 65. Kg7 {[%clk 0:00:05.9]} 65... Rh2 {[%clk 0:00:05.7]} 66. g6
{[%clk 0:00:06]} 66... Rh1 {[%clk 0:00:05.6]} 67. Bf7 {[%clk 0:00:06.2]} 67...
Rh2 {[%clk 0:00:05.1]} 68. Be6 {[%clk 0:00:06.4]} 68... Rh1 {[%clk 0:00:05.3]}
69. Bf7 {[%clk 0:00:06.3]} 69... Rh2 {[%clk 0:00:05.7]} 70. Kg8 {[%clk
0:00:06.2]} 70... Rh1 {[%clk 0:00:05.7]} 71. Kg7 {[%clk 0:00:06.3]} 1/2-1/2